[Event "Slovakian-ch Youth 2022"]
[Site "Lubovna"]
[Date "2022.05.25"]
[Round "6.32"]
[White "Boros, David"]
[Black "Ziman, Damian"]
[Result "1-0"]
[ECO "B25"]
[WhiteElo "1173"]
[BlackElo "1293"]
[Annotator "NA COMBH"]
[PlyCount "79"]
[EventDate "2022.05.22"]
[EventCountry "SVK"]
[SourceTitle "playchess.com"]
[Source "ChessBase"]
[SourceQuality "1"]
[TimeControl "40/5400+30:1800+30"]

1. e4 {[%emt 0:00:46]} c5 {[%emt 0:00:27]} 2. Nc3 {[%emt 0:01:21]} d6 {[%emt 0:00:39]} 3. g3 {[%emt 0:03:15]} Nf6 {[%emt 0:01:31]} 4. Bg2 {[%emt 0:01:48]} g6 {[%emt 0:02:06]} 5. h3 {[%emt 0:05:14]} Bg7 {[%emt 0:01:01]} 6. d3 {[%emt 0:01:33]} Nc6 {[%emt 0:01:06]} 7. Nge2 {[%emt 0:02:48]} O-O {[%emt 0:01:20]} 8. O-O {[%emt 0:02:46]} Be6 {[%emt 0:01:38]} 9. Be3 {[%emt 0:04:59]} a6 {[%emt 0:02:27]} 10. a4 {[%emt 0:02:23]} Qc8 {[%emt 0:04:53]} 11. Kh2 {[%emt 0:02:36]} Rb8 {[%emt 0:04:24]} 12. Rb1 {[%emt 0:08:47]} b5 {[%emt 0:04:05]} 13. f4 {[%emt 0:04:11]} b4 {[%emt 0:06:33]} 14. Nd5 {[%emt 0:01:32]} Bd7 {[%emt 0:05:20]} 15. b3 {[%emt 0:02:43]} Ne8 {[%emt 0:07:56]} 16. Bg1 {[%emt 0:06:32]} a5 {[%emt 0:06:51]} 17. g4 {[%emt 0:07:03]} e6 {[%emt 0:07:02]} 18. Ne3 {[%emt 0:00:27]} Qd8 {[%emt 0:07:40]} 19. Qe1 {[%emt 0:06:35]} g5 {[%emt 0:03:38]} 20. f5 {[%emt 0:02:23]} Be5+ {[%emt 0:01:23]} 21. Kh1 {[%emt 0:01:44]} Ng7 {[%emt 0:02:50]} 22. Bh2 {[%emt 0:04:05]} Bf6 {[%emt 0:02:07]} 23. Bxd6 {[%emt 0:00:51]} h5 {[%emt 0:05:55]} 24. Bxf8 {[%emt 0:04:51]} Qxf8 {[%emt 0:00:13]} 25. Nc4 {[%emt 0:01:54]} hxg4 {[%emt 0:01:53]} 26. hxg4 {[%emt 0:00:17]} Ne8 {[%emt 0:01:01]} 27. Qg3 {[%emt 0:01:44]} Qg7 {[%emt 0:05:24]} 28. Rbd1 {[%emt 0:05:19]} Rd8 {[%emt 0:04:04]} 29. Bf3 {[%emt 0:05:00]} Ne5 {[%emt 0:02:32]} 30. Nxe5 {[%emt 0:02:05]} Bxe5 {[%emt 0:00:14]} 31. Qh3 {[%emt 0:01:15]} Nf6 {[%emt 0:00:48]} 32. Kg2 {[%emt 0:00:47]} Kf8 {[%emt 0:00:32]} 33. Rh1 {[%emt 0:00:43]} Ke7 {[%emt 0:01:02]} 34. Qh6 {[%emt 0:00:26]} Qg8 {[%emt 0:00:26]} 35. Ng3 {[%emt 0:01:10]} Bc6 {[%emt 0:02:37]} 36. Nh5 {[%emt 0:01:14]} Nxh5 {[%emt 0:00:25]} 37. Rxh5 {[%emt 0:00:28]} Bg7 {[%emt 0:01:05]} 38. Qxg5+ {[%emt 0:00:35]} f6 {[%emt 0:00:21]} 39. Qf4 {[%emt 0:00:56]} e5 {[%emt 0:01:00]} 40. Qe3 {[%emt 0:00:11]} 1-0

[Event "Slovakian-ch Youth 2022"]
[Site "Lubovna"]
[Date "2022.05.25"]
[Round "6.33"]
[White "Diachenko Mykhailo"]
[Black "Papay Aurel"]
[Result "1-0"]
[ECO "C50"]
[WhiteElo "1000"]
[BlackElo "1000"]
[Annotator "NA COMBH"]
[PlyCount "109"]
[EventDate "2022.05.22"]
[EventCountry "SVK"]
[SourceTitle "playchess.com"]
[Source "ChessBase"]
[SourceQuality "1"]
[TimeControl "40/5400+30:1800+30"]

1. e4 {[%emt 0:00:15]} e5 {[%emt 0:00:55]} 2. Nf3 {[%emt 0:00:09]} Nc6 {[%emt 0:00:16]} 3. Bc4 {[%emt 0:00:23]} Bc5 {[%emt 0:00:19]} 4. Nxe5 {[%emt 0:00:55]} Nxe5 {[%emt 0:01:32]} 5. d4 {[%emt 0:00:28]} Nxc4 {[%emt 0:01:35]} 6. dxc5 {[%emt 0:00:44]} Na5 {[%emt 0:01:29]} 7. Qg4 {[%emt 0:03:56]} Nf6 {[%emt 0:01:53]} 8. Qe2 {[%emt 0:03:55]} O-O {[%emt 0:03:51]} 9. O-O {[%emt 0:00:23]} Re8 {[%emt 0:02:57]} 10. Bg5 {[%emt 0:01:35]} h6 {[%emt 0:00:53]} 11. Bxf6 {[%emt 0:03:01]} Qxf6 {[%emt 0:00:10]} 12. Nc3 {[%emt 0:00:16]} Nc6 {[%emt 0:00:42]} 13. Nd5 {[%emt 0:02:56]} Qe5 {[%emt 0:09:08]} 14. Rfe1 {[%emt 0:01:52]} Nd4 {[%emt 0:01:12]} 15. Qd3 {[%emt 0:02:16]} Ne6 {[%emt 0:03:16]} 16. b4 {[%emt 0:03:38]} c6 {[%emt 0:01:32]} 17. Nc3 {[%emt 0:03:32]} Rd8 {[%emt 0:11:04]} 18. Rad1 {[%emt 0:09:31]} b6 {[%emt 0:11:16]} 19. cxb6 {[%emt 0:06:37]} axb6 {[%emt 0:01:24]} 20. a4 {[%emt 0:02:05]} Nf4 {[%emt 0:02:28]} 21. Qe3 {[%emt 0:10:12]} Qg5 {[%emt 0:17:34]} 22. g3 {[%emt 0:02:14]} Nh3+ {[%emt 0:02:59]} 23. Kf1 {[%emt 0:03:15]} Qf6 {[%emt 0:02:38]} 24. Qxb6 {[%emt 0:04:35]} Ba6+ {[%emt 0:07:08]} 25. b5 {[%emt 0:02:31]} Qxc3 {[%emt 0:02:32]} 26. bxa6 {[%emt 0:02:35]} Rdb8 {[%emt 0:00:37]} 27. Qe3 {[%emt 0:06:32]} Qxe3 {[%emt 0:00:29]} 28. Rxe3 {[%emt 0:00:11]} Rxa6 {[%emt 0:00:06]} 29. Ra1 {[%emt 0:00:34]} Ng5 {[%emt 0:00:28]} 30. f4 {[%emt 0:00:42]} Ne6 {[%emt 0:00:39]} 31. f5 {[%emt 0:00:41]} Nd4 {[%emt 0:00:13]} 32. Rc3 {[%emt 0:01:26]} Rb4 {[%emt 0:00:39]} 33. a5 {[%emt 0:00:34]} Nf3 {[%emt 0:00:52]} 34. Rxf3 {[%emt 0:01:07]} Rxe4 {[%emt 0:00:13]} 35. Kg2 {[%emt 0:00:37]} Re2+ {[%emt 0:00:12]} 36. Rf2 {[%emt 0:00:16]} Re5 {[%emt 0:00:22]} 37. f6 {[%emt 0:00:50]} gxf6 {[%emt 0:00:20]} 38. Rxf6 {[%emt 0:00:12]} Kg7 {[%emt 0:00:16]} 39. Rd6 {[%emt 0:00:34]} Re2+ {[%emt 0:00:27]} 40. Kf3 {[%emt 0:00:34]} Rxc2 {[%emt 0:00:07]} 41. Rxd7 {[%emt 0:30:22]} Rc5 {[%emt 0:30:40]} 42. Rd6 {[%emt 0:00:42]} f6 {[%emt 0:02:35]} 43. h4 {[%emt 0:00:20]} Kf7 {[%emt 0:00:25]} 44. Rd7+ {[%emt 0:01:33]} Ke6 {[%emt 0:00:41]} 45. Rh7 {[%emt 0:00:30]} h5 {[%emt 0:00:13]} 46. g4 {[%emt 0:00:25]} Rc3+ {[%emt 0:01:00]} 47. Ke4 {[%emt 0:00:29]} hxg4 {[%emt 0:00:36]} 48. h5 {[%emt 0:00:39]} f5+ {[%emt 0:00:28]} 49. Kf4 {[%emt 0:00:40]} g3 {[%emt 0:00:26]} 50. h6 {[%emt 0:00:47]} g2 {[%emt 0:00:23]} 51. Rg7 {[%emt 0:00:11]} Rxa5 {[%emt 0:00:24]} 52. Rxa5 {[%emt 0:01:09]} Rc2 {[%emt 0:01:55]} 53. h7 {[%emt 0:00:16]} Rc1 {[%emt 0:00:49]} 54. Rxg2 {[%emt 0:00:05]} Rh1 {[%emt 0:01:10]} 55. Ra7 {[%emt 0:00:22]} 1-0

[Event "Slovakian-ch Youth 2022"]
[Site "Lubovna"]
[Date "2022.05.25"]
[Round "6.34"]
[White "Krajci Hugo"]
[Black "Brnusak, Simon"]
[Result "0-1"]
[ECO "A34"]
[WhiteElo "1178"]
[BlackElo "1090"]
[Annotator "NA COMBH"]
[PlyCount "66"]
[EventDate "2022.05.22"]
[EventCountry "SVK"]
[SourceTitle "playchess.com"]
[Source "ChessBase"]
[SourceQuality "1"]
[TimeControl "40/5400+30:1800+30"]

1. e4 {[%emt 0:00:05]} c5 {[%emt 0:00:16]} 2. c4 {[%emt 0:01:15]} e6 {[%emt 0:02:48]} 3. Nc3 {[%emt 0:00:29]} Nc6 {[%emt 0:01:19]} 4. Be2 {[%emt 0:01:12]} Nf6 {[%emt 0:01:16]} 5. Nf3 {[%emt 0:00:57]} Qc7 {[%emt 0:01:47]} 6. e5 {[%emt 0:00:50]} Nxe5 {[%emt 0:01:25]} 7. Nxe5 {[%emt 0:00:32]} Qxe5 {[%emt 0:01:13]} 8. d3 {[%emt 0:00:39]} Qc7 {[%emt 0:01:57]} 9. Be3 {[%emt 0:00:28]} a6 {[%emt 0:01:34]} 10. Bf3 {[%emt 0:01:56]} Be7 {[%emt 0:01:35]} 11. b3 {[%emt 0:02:35]} O-O {[%emt 0:02:09]} 12. O-O {[%emt 0:02:42]} Rd8 {[%emt 0:01:50]} 13. Re1 {[%emt 0:04:29]} d5 {[%emt 0:02:08]} 14. Bd2 {[%emt 0:06:15]} dxc4 {[%emt 0:01:44]} 15. dxc4 {[%emt 0:03:19]} Rb8 {[%emt 0:03:06]} 16. Qc1 {[%emt 0:01:40]} Bd6 {[%emt 0:09:29]} 17. g3 {[%emt 0:02:05]} b6 {[%emt 0:02:01]} 18. Qc2 {[%emt 0:02:52]} Bb7 {[%emt 0:12:30]} 19. Bxb7 {[%emt 0:00:37]} Qxb7 {[%emt 0:00:27]} 20. Rad1 {[%emt 0:00:30]} Qe7 {[%emt 0:08:22]} 21. Bc1 {[%emt 0:00:32]} Bc7 {[%emt 0:02:50]} 22. Bb2 {[%emt 0:01:25]} Rxd1 {[%emt 0:05:27]} 23. Rxd1 {[%emt 0:00:24]} Rd8 {[%emt 0:01:06]} 24. Rxd8+ {[%emt 0:00:24]} Qxd8 {[%emt 0:00:11]} 25. Ba1 {[%emt 0:00:02]} h6 {[%emt 0:04:10]} 26. Qb2 {[%emt 0:00:37]} Be5 {[%emt 0:00:56]} 27. Qe2 {[%emt 0:03:59]} Bd4 {[%emt 0:01:09]} 28. Qe1 {[%emt 0:00:32]} Ng4 {[%emt 0:01:12]} 29. Ne4 {[%emt 0:01:40]} Bxa1 {[%emt 0:00:58]} 30. Qxa1 {[%emt 0:00:16]} f5 {[%emt 0:00:57]} 31. Nc3 {[%emt 0:00:31]} Qd4 {[%emt 0:00:41]} 32. Qe1 {[%emt 0:00:46]} Ne5 {[%emt 0:01:38]} 33. Nd1 {[%emt 0:01:49]} Nf3+ {[%emt 0:02:06]} 0-1

[Event "Slovakian-ch Youth 2022"]
[Site "Lubovna"]
[Date "2022.05.25"]
[Round "6.35"]
[White "Slivka Martin"]
[Black "Gobl, Fabian"]
[Result "0-1"]
[ECO "C50"]
[WhiteElo "1000"]
[BlackElo "1017"]
[Annotator "NA COMBH"]
[PlyCount "24"]
[EventDate "2022.05.22"]
[EventCountry "SVK"]
[SourceTitle "playchess.com"]
[Source "ChessBase"]
[SourceQuality "1"]
[TimeControl "40/5400+30:1800+30"]

1. e4 {[%emt 0:00:48]} e5 {[%emt 0:02:52]} 2. Nf3 {[%emt 0:00:15]} Nc6 {[%emt 0:00:09]} 3. Bc4 {[%emt 0:00:21]} h6 {[%emt 0:00:28]} 4. O-O {[%emt 0:00:39]} Bc5 {[%emt 0:00:36]} 5. d3 {[%emt 0:00:44]} d6 {[%emt 0:00:32]} 6. h3 {[%emt 0:00:19]} Qf6 {[%emt 0:02:05]} 7. Ng5 {[%emt 0:11:19]} hxg5 {[%emt 0:00:40]} 8. Qf3 {[%emt 0:00:48]} Qxf3 {[%emt 0:00:53]} 9. gxf3 {[%emt 0:00:11]} Bxh3 {[%emt 0:00:46]} 10. Re1 {[%emt 0:00:24]} Nd4 {[%emt 0:05:11]} 11. Rd1 {[%emt 0:00:55]} Nxf3+ {[%emt 0:00:25]} 12. Kh1 {[%emt 0:00:44]} Bf1# {[%emt 0:00:15]} 0-1

[Event "Slovakian-ch Youth 2022"]
[Site "Lubovna"]
[Date "2022.05.25"]
[Round "6.36"]
[White "Kriska Alexander"]
[Black "Stavac Teodor"]
[Result "1-0"]
[ECO "D02"]
[WhiteElo "1046"]
[BlackElo "1000"]
[Annotator "NA COMBH"]
[PlyCount "28"]
[EventDate "2022.05.22"]
[EventCountry "SVK"]
[SourceTitle "playchess.com"]
[Source "ChessBase"]
[SourceQuality "1"]
[TimeControl "40/5400+30:1800+30"]

1. d4 {[%emt 0:00:14]} d5 {[%emt 0:00:34]} 2. Bf4 {[%emt 0:00:44]} Nc6 {[%emt 0:00:42]} 3. Nf3 {[%emt 0:00:32]} Bg4 {[%emt 0:00:18]} 4. e3 {[%emt 0:02:49]} e6 {[%emt 0:00:45]} 5. Be2 {[%emt 0:02:31]} Bd6 {[%emt 0:00:31]} 6. Bg3 {[%emt 0:01:11]} Nf6 {[%emt 0:01:36]} 7. Nbd2 {[%emt 0:02:39]} O-O {[%emt 0:02:20]} 8. c3 {[%emt 0:05:33]} Re8 {[%emt 0:03:13]} 9. Bd3 {[%emt 0:04:20]} e5 {[%emt 0:03:04]} 10. dxe5 {[%emt 0:03:20]} Bxe5 {[%emt 0:00:25]} 11. Bxe5 {[%emt 0:08:16]} Nxe5 {[%emt 0:00:22]} 12. Be2 {[%emt 0:01:22]} Rc8 {[%emt 0:00:57]} 13. h3 {[%emt 0:01:25]} Bxf3 {[%emt 0:00:42]} 14. Nxf3 {[%emt 0:00:39]} c5 {[%emt 0:01:15]} 1-0

[Event "Slovakian-ch Youth 2022"]
[Site "Lubovna"]
[Date "2022.05.26"]
[Round "7.1"]
[White "Turcan, Richard"]
[Black "Zetocha, Adrian"]
[Result "1-0"]
[ECO "B76"]
[WhiteElo "2278"]
[BlackElo "2331"]
[Annotator "TA"]
[PlyCount "123"]
[EventDate "2022.05.22"]
[EventCountry "SVK"]
[SourceTitle "playchess.com"]
[Source "ChessBase"]
[SourceQuality "1"]
[TimeControl "40/5400+30:1800+30"]

{[%evp 22,123,34,19,42,48,46,43,73,45,45,43,49,49,48,0,0,0,0,0,0,-14,-8,-17,-45,-228,-59,-49,0,0,0,0,0,0,0,0,0,0,0,0,0,0,0,0,0,0,0,0,0,0,0,16,55,38,149,54,149,149,212,212,440,427,518,500,397,375,905,886,12839,447,454,449,447,406,432,93,93,0,201,93,232,93,93,93,93,0,93,79,79,0,0,0,12833,12834,12844,12844,12845,12845,12845,12846,29989,29990,29995,29996]} 1. e4 {[%emt 0:05:27]} c5 {[%emt 0:00:21]} 2. Nf3 {[%emt 0:00:27]} d6 {[%emt 0:00:13]} 3. d4 {[%emt 0:00:05]} cxd4 {[%emt 0:00:05]} 4. Nxd4 {[%emt 0:00:04]} Nf6 {[%emt 0:00:10]} 5. Nc3 {[%emt 0:00:05]} g6 {[%emt 0:00:10]} 6. Be3 {[%emt 0:00:07]} Bg7 {[%emt 0:00:08]} 7. f3 {[%emt 0:00:05]} O-O {[%emt 0:00:07]} 8. Qd2 {[%emt 0:00:04]} Nc6 {[%emt 0:00:09]} 9. g4 {[%emt 0:00:54]} Nxd4 {[%emt 0:40:09]} 10. Bxd4 {[%emt 0:00:46]} Be6 {[%emt 0:00:39]} 11. Nd5 {[%emt 0:05:46]} Bxd5 {[%emt 0:10:35]} 12. exd5 {[%emt 0:00:29]} e6 {[%emt 0:15:15] B76: Sicilian Dragon: Yugoslav Attack, 9 g4 and 9 0-0-0.} 13. dxe6 {[%emt 0:01:18]} fxe6 {[%emt 0:00:10]} 14. O-O-O {[%emt 0:01:40]} Rc8 {[%emt 0:01:04] White is slightly better.} 15. h4 {[%emt 0:02:17][%cal Bh2h4,Bh4h5,Bh5h6][%mdl 32]} Nd5 {[%emt 0:02:50]} 16. Bxg7 {[%emt 0:02:35]} Kxg7 {[%emt 0:00:01]} 17. h5 {[%emt 0:02:38] And now hxg6 would win.} g5 {[%emt 0:01:13] [#]} 18. Bb5 $146 {[%emt 0:39:39]} (18. Kb1 $14) ({Predecessor:} 18. h6+ Kg8 19. Rh2 Qf6 20. Kb1 Rc6 21. c4 Nf4 22. Qd4 a6 23. Qxf6 Rxf6 24. b3 d5 25. Kb2 {½-½ (25) Mobarhani,N (1871)-Asgharzadeh,M (1986) Arak 2017}) 18... Rc5 $11 {[%emt 0:08:20]} 19. Ba4 {[%emt 0:01:44]} Rxf3 {[%emt 0:02:13]} 20. h6+ $1 {[%emt 0:09:17]} Kf7 {[%emt 0:01:25]} 21. Qg2 {[%emt 0:05:23]} Rf4 {[%emt 0:06:49]} 22. Rhf1 {[%emt 0:02:25] aiming for Qe4.} Qf6 {[%emt 0:02:41] Hoping for ...Kg8.} 23. Kb1 $2 {[%emt 0:02:26]} (23. Bb3 $15) 23... Qxh6 $2 {[%emt 0:04:14]} (23... b5 $19 24. Rxf4 gxf4) 24. Bb3 $15 {[%emt 0:08:19]} b5 {[%emt 0:00:05]} (24... Kg7 $15 {was preferrable.}) 25. Bxd5 $11 {[%emt 0:00:56]} Rxd5 {[%emt 0:00:07]} 26. Rxd5 {[%emt 0:00:15]} exd5 {[%emt 0:00:09][%mdl 4096] Endgame KQR-KQR} 27. Re1 {[%emt 0:02:39] Inhibits Qe6.} Re4 {[%emt 0:02:27]} 28. Rxe4 {[%emt 0:00:17]} dxe4 {[%emt 0:00:03]} 29. Qxe4 {[%emt 0:00:05] KQ-KQ} Kg7 {[%emt 0:02:27]} 30. Qe7+ {[%emt 0:02:49]} Kg8 {[%emt 0:00:28]} 31. Qe8+ {[%emt 0:04:03]} Kg7 {[%emt 0:00:10] ( -> ...Qh1+)} 32. Qd7+ {[%emt 0:00:07]} Kg8 {[%emt 0:00:36][%cal Rh6h1]} 33. Qd8+ {[%emt 0:00:12]} Kf7 {[%emt 0:00:39][%cal Rh6h1]} 34. Qc7+ {[%emt 0:00:50]} Kg8 {[%emt 0:00:38][%cal Rh6h1]} 35. Qb8+ {[%emt 0:00:15]} Qf8 {[%emt 0:00:31]} 36. Qxb5 {[%emt 0:00:07]} Qe7 {[%emt 0:00:21][%cal Re7e1]} 37. a4 {[%emt 0:00:55][%cal Ba2a4,Ba4a5,Ba5a6][%mdl 32]} Qe1+ {[%emt 0:00:43]} 38. Ka2 {[%emt 0:00:01]} Qe6+ {[%emt 0:00:17]} ({Better is} 38... Qe7 $1 $14) 39. b3 $16 {[%emt 0:00:09][%cal Bb2b3,Bb3b4,Bb4b5][%mdl 32]} Qe7 {[%emt 0:00:46]} (39... Qxg4 $16 {is a better defense.} 40. Qb8+ Kf7) 40. a5 $18 {[%emt 0:00:20]} h6 $2 {[%emt 0:00:24]} (40... Kg7 {was necessary.} 41. Qf5 h6) 41. a6 {[%emt 0:30:59]} Qc7 {[%emt 0:08:45]} 42. Qd5+ {[%emt 0:00:00]} Kf8 {[%emt 0:02:20]} 43. c4 {[%emt 0:00:00] Strongly threatening b4.} Ke7 $2 {[%emt 0:13:24] [#]} (43... Qc5 44. b4 Qf2+ 45. Ka3 Ke7) 44. b4 $1 {[%emt 0:00:00]} Qc8 {[%emt 0:03:11]} 45. Qe4+ {[%emt 0:00:00]} (45. Qb7+ $142 Kd8 46. Qxc8+ (46. Kb3 Qxb7 47. axb7 Kc7 $11) 46... Kxc8 47. b5) 45... Kd8 {[%emt 0:01:35]} 46. b5 {[%emt 0:00:00] Black must now prevent Qd4.} Qc5 {[%emt 0:00:26] Prevents Qd4.} 47. Kb3 {[%emt 0:00:00]} Qg1 {[%emt 0:00:50] [#]} 48. Qa8+ $2 {[%emt 0:00:00]} (48. Kc2 $1 $18 {is the precise move to win. Kd2 is the strong threat.} Qc5 49. Qd5 Qf2+ 50. Kb3) 48... Ke7 $16 {[%emt 0:00:17]} 49. Qe4+ {[%emt 0:00:00]} (49. Qf3 $16) 49... Kd8 $18 {[%emt 0:00:14]} 50. Qd3 {[%emt 0:00:00]} (50. Kc2 $18 {is more deadly.}) 50... Ke7 {[%emt 0:02:10]} (50... Qc5 $16 {was called for.} 51. Ka4 Ke7) 51. Qc3 {[%emt 0:00:00]} ({Weaker is} 51. Qh7+ Kd8 $14) (51. Kc2 $18 {and White stays clearly on top.}) 51... Kd8 {[%emt 0:01:42]} 52. Ka3 {[%emt 0:00:00]} Qc5+ {[%emt 0:01:09]} 53. Qb4 {[%emt 0:00:00]} ({White should try} 53. Ka4 $16) 53... Qe3+ {[%emt 0:00:34]} (53... Qd4 $1 $11) 54. Ka4 $16 {[%emt 0:00:00]} Kc7 {[%emt 0:00:13]} 55. Qa5+ {[%emt 0:00:00]} (55. Qb1 $16) 55... Kc8 $1 $11 {[%emt 0:00:46]} 56. b6 {[%emt 0:01:10] Threatening mate with b7+.} axb6 {[%emt 0:00:01][%mdl 8192]} (56... Kb8 $11) 57. Qd5 $18 {[%emt 0:00:39]} Qc5 {[%emt 0:00:57]} 58. Qxc5+ {[%emt 0:01:27][%mdl 64] Deflection} bxc5 {[%emt 0:00:25]} 59. Ka5 {[%emt 0:00:10]} Kc7 {[%emt 0:00:37]} 60. Kb5 {[%emt 0:00:07]} Kb8 {[%emt 0:00:29]} 61. Kb6 {[%emt 0:00:19]} Ka8 {[%emt 0:00:31]} 62. a7 {[%emt 0:00:15] Weighted Error Value: White=0.52/Black=0.46} 1-0

[Event "Slovakian-ch Youth 2022"]
[Site "Lubovna"]
[Date "2022.05.26"]
[Round "7.1"]
[White "Elias, David"]
[Black "Oruzinsky, Juraj"]
[Result "1-0"]
[ECO "A28"]
[WhiteElo "1901"]
[BlackElo "1656"]
[Annotator "TA"]
[PlyCount "77"]
[EventDate "2022.05.22"]
[EventCountry "SVK"]
[SourceTitle "playchess.com"]
[Source "ChessBase"]
[SourceQuality "1"]
[TimeControl "40/5400+30:1800+30"]

{[%evp 16,77,23,22,67,54,65,66,95,82,82,57,55,65,57,44,107,82,120,118,110,85,97,45,51,40,53,39,62,15,56,31,31,26,39,24,39,42,52,41,207,203,204,204,195,201,195,205,237,231,275,284,277,275,503,500,532,524,1008,1008,991,985,923,877]} 1. c4 {[%emt 0:00:13]} e5 {[%emt 0:00:22]} 2. Nc3 {[%emt 0:00:17]} Nc6 {[%emt 0:00:21]} 3. Nf3 {[%emt 0:00:29]} Nf6 {[%emt 0:01:46]} 4. e3 {[%emt 0:00:47]} d5 {[%emt 0:05:16]} 5. cxd5 {[%emt 0:01:21]} Nxd5 {[%emt 0:00:12]} 6. Bb5 {[%emt 0:01:01]} Nxc3 {[%emt 0:11:10]} 7. bxc3 {[%emt 0:00:20]} Bd6 {[%emt 0:07:21]} 8. d4 {[%emt 0:02:15]} Bd7 {[%emt 0:01:21] is now more promising than 8...exd4.} 9. O-O {[%emt 0:06:23]} e4 {[%emt 0:02:37] A28: English Opening: Four Knights Variation.} 10. Nd2 {[%emt 0:00:13]} Qh4 {[%emt 0:06:52][%csl Gd6][%cal Rh4h2] [#]} 11. f4 {[%emt 0:21:04] [#]} f5 $146 {[%emt 0:03:36] White is slightly better.} ({Predecessor:} 11... Qe7 12. c4 b6 13. Qc2 f5 14. Bxc6 Bxc6 15. c5 bxc5 16. dxc5 Bxc5 17. Nb3 Bxe3+ 18. Bxe3 {1-0 (26) Navrotescu,A (2249)-Dornbusch,T (2249) Cesson Sevigne 2021}) 12. Nc4 {[%emt 0:10:03]} O-O {[%emt 0:09:53]} 13. Nxd6 {[%emt 0:02:38]} cxd6 {[%emt 0:00:33]} 14. Qb3+ {[%emt 0:00:55]} Kh8 {[%emt 0:00:39]} 15. Be2 {[%emt 0:05:07]} Rab8 {[%emt 0:04:44]} (15... b6 $14) 16. c4 {[%emt 0:04:09]} Rf6 {[%emt 0:04:54] [#] aiming for ...Rh6.} 17. g3 {[%emt 0:05:13]} Rg6 {[%emt 0:01:36][%cal Og6g3]} 18. Rf2 {[%emt 0:02:41]} b6 {[%emt 0:01:54]} 19. Kg2 {[%emt 0:05:10]} (19. Bd2 $16) 19... Na5 $14 {[%emt 0:00:50]} 20. Qd1 {[%emt 0:00:40]} Qe7 {[%emt 0:01:15]} 21. Ba3 {[%emt 0:05:24]} Rf6 {[%emt 0:02:59]} 22. Qd2 {[%emt 0:01:05]} (22. Bb4 $14) 22... Nb7 {[%emt 0:01:57]} 23. Rb1 {[%emt 0:02:29]} Rff8 {[%emt 0:02:01]} 24. Rff1 {[%emt 0:01:31]} Be6 {[%emt 0:01:39]} 25. Rfc1 {[%emt 0:01:57]} Qd7 {[%emt 0:02:19]} 26. Qb2 {[%emt 0:06:31]} Na5 {[%emt 0:06:46]} 27. Qb4 {[%emt 0:04:12]} Rbc8 $2 {[%emt 0:04:30] This costs Black the game.} (27... Rfd8 $14) 28. d5 $18 {[%emt 0:03:21]} ({Much less strong is} 28. Qxd6 Qxd6 29. Bxd6 Rfd8) 28... Bf7 {[%emt 0:01:37]} 29. Qxd6 {[%emt 0:00:07]} Qxd6 {[%emt 0:00:08]} 30. Bxd6 {[%emt 0:00:03]} Rfd8 {[%emt 0:00:08]} 31. Be5 {[%emt 0:00:34]} h6 {[%emt 0:01:12]} 32. h3 {[%emt 0:00:30]} Kh7 {[%emt 0:01:57]} 33. g4 {[%emt 0:00:37]} g6 {[%emt 0:01:36]} 34. Kf2 {[%emt 0:00:49]} Rc5 $2 {[%emt 0:00:50]} (34... Nb7 35. Rg1 Rg8) 35. gxf5 {[%emt 0:01:22] White is clearly winning.} gxf5 {[%emt 0:00:19]} 36. Rg1 {[%emt 0:00:58] White threatens Rg7+ and mate.} Rg8 {[%emt 0:00:54] Prevents Rg7+.} 37. Rxg8 {[%emt 0:00:09]} Kxg8 {[%emt 0:00:05]} 38. Rg1+ {[%emt 0:00:05]} Kf8 {[%emt 0:00:06]} 39. Bd6+ {[%emt 0:00:05] Weighted Error Value: White=0.10 (very precise) /Black=0.37} 1-0

[Event "Slovakian-ch Youth 2022"]
[Site "Lubovna"]
[Date "2022.05.26"]
[Round "7.2"]
[White "Durana, Jonas"]
[Black "Vargosko, Juraj"]
[Result "1-0"]
[ECO "B01"]
[WhiteElo "1644"]
[BlackElo "1640"]
[Annotator "NA COMBH RC"]
[PlyCount "29"]
[EventDate "2022.05.22"]
[EventCountry "SVK"]
[SourceTitle "playchess.com"]
[Source "ChessBase"]
[SourceQuality "1"]
[TimeControl "40/5400+30:1800+30"]

1. e4 {[%emt 0:00:03]} d5 {[%emt 0:00:24]} 2. exd5 {[%emt 0:00:05]} Nf6 {[%emt 0:00:17]} 3. d4 {[%emt 0:00:26]} Bg4 {[%emt 0:01:43]} 4. Nf3 {[%emt 0:00:08]} Qxd5 {[%emt 0:01:54]} 5. Be2 {[%emt 0:02:44]} e6 {[%emt 0:07:55]} 6. Be3 {[%emt 0:02:10]} Nc6 {[%emt 0:00:54]} 7. Nbd2 {[%emt 0:03:30]} O-O-O {[%emt 0:01:29]} 8. a3 {[%emt 0:02:48]} h6 {[%emt 0:15:52]} 9. c4 {[%emt 0:01:23]} Qd7 {[%emt 0:01:29]} 10. b4 {[%emt 0:02:37]} g5 {[%emt 0:12:08]} 11. b5 {[%emt 0:02:34]} Ne7 {[%emt 0:01:24]} 12. Qa4 {[%emt 0:02:27]} Bxf3 {[%emt 0:11:41]} 13. Bxf3 {[%emt 0:09:17]} c6 {[%emt 0:03:05]} 14. Qxa7 {[%emt 0:01:35]} g4 {[%emt 0:00:28] 7.52} 15. Qa8+ {[%emt 0:02:34]} 1-0